bitfinex-derivatives/quotes_BTCF0:USTF0_20250911
["timestamp","ask_amount","ask_price","bid_price","bid_amount"]
[1757564526493,1.33063581,114210.0,114200.0,0.29008]
[1757564528996,1.42171862,114210.0,114200.0,0.29008]
[1757564529799,3.18755862,114210.0,114200.0,0.29008]
[1757564531998,3.09647581,114210.0,114200.0,0.29008]
[1757564535907,3.09651581,114210.0,114200.0,0.29008]
[1757564536100,2.28943581,114210.0,114200.0,0.29008]
[1757564536300,3.09651581,114210.0,114200.0,0.29008]
[1757564536806,2.28943581,114210.0,114200.0,0.29008]
[1757564537108,3.09651581,114210.0,114200.0,0.29008]
[1757564537504,2.28943581,114210.0,114200.0,0.29008]
[1757564537709,3.09651581,114210.0,114200.0,0.29008]
[1757564538307,3.18759862,114210.0,114200.0,0.29008]
[1757564539906,3.09651581,114210.0,114200.0,0.29008]
[1757564541307,3.09651581,114210.0,114200.0,0.36866181]
[1757564543601,3.18759862,114210.0,114200.0,0.36866181]
[1757564546311,3.09651581,114210.0,114200.0,0.36866181]
[1757564547313,3.18759862,114210.0,114200.0,0.36866181]
[1757564547912,3.09651581,114210.0,114200.0,0.36866181]
[1757564548504,3.09651581,114210.0,114200.0,0.29008]
[1757564552514,3.09651581,114210.0,114200.0,0.36866181]
[1757564559420,3.09651581,114210.0,114200.0,0.11866181]
[1757564560010,2.28943581,114210.0,114200.0,0.11866181]
[1757564560216,3.09635581,114210.0,114200.0,0.04008]
[1757564560520,3.14194929,114210.0,114200.0,0.2866501]
[1757564560923,3.14194929,114210.0,114200.0,0.14997381]
[1757564561622,3.14194929,114210.0,114200.0,0.04008]
[1757564563524,3.14190929,114210.0,114200.0,0.04008]
[1757564565925,2.198353,114210.0,114200.0,0.04008]
[1757564566125,3.005193,114210.0,114200.0,0.04008]
[1757564566425,3.14186929,114210.0,114200.0,0.04008]
[1757564567521,3.14186929,114210.0,114200.0,0.17675629]
[1757564567522,2.198353,114210.0,114200.0,0.17675629]
[1757564567729,2.198353,114210.0,114200.0,0.75206696]
[1757564567922,3.005153,114210.0,114200.0,0.75206696]
[1757564568124,3.005153,114210.0,114200.0,0.56343258]
[1757564568320,3.14182929,114210.0,114200.0,0.42675629]
[1757564568626,3.005153,114210.0,114200.0,0.42675629]
[1757564568828,3.14182929,114210.0,114200.0,0.42675629]
[1757564569519,3.14182929,114210.0,114200.0,0.56343258]
[1757564569726,3.14182929,114210.0,114200.0,0.67332639]
[1757564570222,3.14182929,114210.0,114200.0,0.5366501]
[1757564570726,2.644353,114210.0,114200.0,0.5366501]
[1757564571028,2.78102929,114210.0,114200.0,0.5366501]
[1757564571529,2.644353,114210.0,114200.0,0.67332639]
[1757564571730,2.78102929,114210.0,114200.0,0.67332639]
[1757564572026,2.78102929,114210.0,114200.0,0.5366501]
[1757564572228,2.644353,114210.0,114200.0,0.5366501]
[1757564572527,2.78102929,114210.0,114200.0,0.5366501]
[1757564573031,2.78102929,114210.0,114200.0,0.39997381]
[1757564573223,2.78102929,114210.0,114200.0,0.5366501]
[1757564573424,2.78102929,114210.0,114200.0,0.5053715]
[1757564574926,2.78090929,114210.0,114200.0,0.5053715]
[1757564575424,3.14170929,114210.0,114200.0,0.50535983]
[1757564575826,3.005033,114210.0,114200.0,0.50535983]
[1757564576026,3.14170929,114210.0,114200.0,0.42675629]
[1757564576226,3.14170929,114210.0,114200.0,0.5366501]
[1757564577935,1.37586929,114210.0,114200.0,0.5366501]
[1757564578631,1.37586929,114210.0,114200.0,0.50535111]
[1757564580729,0.878313,114210.0,114200.0,0.31343258]
[1757564580930,0.878313,114210.0,114200.0,0.45343258]
[1757564581329,0.878313,114210.0,114200.0,0.04008]
[1757564581530,0.071713,114210.0,114200.0,0.31343258]
[1757564581737,0.80656,114210.0,114200.0,0.04008]
[1757564581939,0.80656,114210.0,114200.0,0.31343258]
[1757564582133,0.50619162,114220.0,114200.0,0.31343258]
[1757564582340,0.50619162,114220.0,114210.0,0.28253379]
[1757564582639,1.31275162,114220.0,114210.0,0.28253379]
[1757564583040,1.31275162,114220.0,114210.0,0.03587]
[1757564583239,1.31275162,114220.0,114210.0,0.25110589]
[1757564583838,1.38314901,114220.0,114210.0,0.25110589]
[1757564584241,1.38314901,114220.0,114210.0,0.25310589]
[1757564584441,1.38314901,114220.0,114210.0,0.25410589]
[1757564585144,1.38314901,114220.0,114210.0,0.1174296]
[1757564585343,1.38314901,114220.0,114210.0,0.25410589]
[1757564586644,1.24647272,114220.0,114210.0,0.25410589]
[1757564587041,1.24647272,114220.0,114210.0,1.00158218]
[1757564587042,0.07911272,114220.0,114210.0,1.00158218]
[1757564587246,0.81992,114220.0,114210.0,0.67222258]
[1757564587450,0.88947008,114220.0,114210.0,0.78221008]
[1757564587643,0.88947008,114220.0,114210.0,1.03301008]
[1757564587851,0.89199008,114220.0,114210.0,1.16301008]
[1757564588052,0.06955008,114220.0,114210.0,1.16301008]
[1757564588353,0.8226,114220.0,114210.0,1.17301008]
[1757564588652,0.8226,114220.0,114210.0,0.92302258]
[1757564588844,0.8226,114220.0,114210.0,1.05302258]
[1757564589044,0.8226,114220.0,114210.0,0.92302258]
[1757564589241,0.8226,114220.0,114210.0,0.64967]
[1757564589443,0.8226,114220.0,114210.0,1.05302258]
[1757564590252,0.8226,114220.0,114210.0,0.78634629]
[1757564590548,0.8226,114220.0,114210.0,0.03887]
[1757564590549,1.32007629,114220.0,114210.0,0.03887]
[1757564590748,1.32007629,114220.0,114210.0,0.2854099]
[1757564591051,1.45675258,114220.0,114210.0,0.2854099]
[1757564591249,1.32007629,114220.0,114210.0,0.2854099]
[1757564591552,0.95927629,114220.0,114210.0,0.2854099]
[1757564592051,1.1834,114220.0,114210.0,0.2854099]
[1757564592248,1.02853934,114220.0,114210.0,0.2854099]
[1757564592447,0.89186305,114220.0,114210.0,0.2854099]
[1757564592652,1.02853934,114220.0,114210.0,0.2854099]
[1757564593654,0.89186305,114220.0,114210.0,0.22722268]
[1757564593847,1.02853934,114220.0,114210.0,0.25403536]
[1757564594247,1.38933934,114220.0,114210.0,0.25403536]
[1757564595953,1.25266305,114220.0,114210.0,0.25403536]
[1757564596145,1.38933934,114220.0,114210.0,0.25403536]
[1757564596341,1.02853934,114220.0,114210.0,0.25403536]
[1757564596542,1.38933934,114220.0,114210.0,0.25403536]
[1757564596750,1.02853934,114220.0,114210.0,0.25403536]
[1757564597752,1.02853934,114220.0,114210.0,0.17554629]
[1757564598246,1.02853934,114220.0,114210.0,0.2854099]
[1757564598648,0.89186305,114220.0,114210.0,0.2854099]
[1757564598844,1.02853934,114220.0,114210.0,0.2854099]
[1757564599154,0.20593934,114220.0,114210.0,0.2854099]
[1757564599363,1.02877934,114220.0,114210.0,0.14873361]
[1757564599560,1.77625563,114220.0,114210.0,0.14873361]
[1757564599764,0.89214305,114220.0,114210.0,0.78288619]
[1757564599959,0.89214305,114220.0,114210.0,0.79302258]
[1757564600266,0.87791402,114220.0,114210.0,0.88931418]
[1757564600864,0.87791402,114220.0,114210.0,0.75263789]
[1757564601065,0.87791402,114220.0,114210.0,0.63263789]
[1757564601765,0.87771402,114220.0,114210.0,0.63263789]
[1757564601966,0.87743402,114220.0,114210.0,0.63263789]
[1757564602666,0.87735402,114220.0,114210.0,0.63263789]
[1757564604068,0.87735402,114220.0,114210.0,0.75263789]
[1757564604475,0.87735402,114220.0,114210.0,0.4959616]
[1757564604667,0.87735402,114220.0,114210.0,0.27183789]
[1757564606372,0.87735402,114220.0,114210.0,0.18429629]
[1757564606581,1.01403031,114220.0,114210.0,0.29424671]
[1757564608776,1.01403031,114220.0,114210.0,0.37280551]
[1757564608979,1.01403031,114220.0,114210.0,0.26285509]
[1757564609776,1.7615066,114220.0,114210.0,0.26285509]
[1757564609978,1.62483031,114220.0,114210.0,0.26285509]
[1757564610278,1.48815402,114220.0,114210.0,0.26285509]
[1757564610474,1.62483031,114220.0,114210.0,0.26285509]
[1757564610675,0.87735402,114220.0,114210.0,0.35039739]
[1757564610980,0.89851402,114220.0,114210.0,1.31519117]
[1757564611184,0.89851402,114220.0,114210.0,1.39374838]
[1757564611473,0.3608,114250.0,114240.0,0.03483]
[1757564611874,0.3608,114250.0,114240.0,0.30818258]
[1757564612075,2.13512059,114260.0,114250.0,0.01367]
[1757564612276,2.98124059,114260.0,114250.0,0.17150629]
[1757564612679,3.11791688,114260.0,114250.0,0.17150629]
[1757564612880,2.98124059,114260.0,114250.0,0.17150629]
[1757564613278,3.11791688,114260.0,114250.0,0.17150629]
[1757564613581,2.98124059,114260.0,114250.0,0.25005405]
[1757564613772,2.98124059,114260.0,114250.0,0.24905405]
[1757564613968,3.11791688,114260.0,114250.0,0.24905405]
[1757564614181,2.98124059,114260.0,114250.0,0.11237776]
[1757564614487,3.11791688,114260.0,114250.0,0.24605405]
[1757564614680,3.1901146,114260.0,114250.0,0.25480405]
[1757564614881,3.05343831,114260.0,114250.0,0.11812776]
[1757564615078,3.57679089,114260.0,114250.0,0.11812776]
[1757564615383,3.57679089,114260.0,114250.0,0.01842]
[1757564615578,3.60045889,114260.0,114250.0,0.01842]
[1757564615880,3.60045889,114260.0,114250.0,0.00875]
[1757564616084,3.32710631,114260.0,114250.0,0.00875]
[1757564616286,3.60045889,114260.0,114250.0,0.00875]
[1757564616584,3.59945889,114260.0,114250.0,0.00875]
[1757564616884,3.32610631,114260.0,114250.0,0.00875]
[1757564617083,3.59945889,114260.0,114250.0,0.00875]
[1757564618378,3.59645889,114260.0,114250.0,0.01075]
[1757564618983,3.59645889,114260.0,114250.0,0.02442]
[1757564619485,3.34645889,114260.0,114250.0,0.02442]
[1757564619984,3.34545889,114260.0,114250.0,0.02442]
[1757564620885,3.34645889,114260.0,114250.0,0.02242]
[1757564621788,3.34545889,114260.0,114250.0,0.02242]
[1757564622286,3.25422279,114260.0,114250.0,0.02242]
[1757564625590,3.07210631,114260.0,114250.0,0.02242]
[1757564625989,3.25422279,114260.0,114250.0,0.02242]
[1757564626488,2.40810279,114260.0,114250.0,0.02242]
[1757564626684,3.06778631,114260.0,114250.0,0.04358]
[1757564626990,3.24990279,114260.0,114250.0,0.04358]
[1757564627389,3.24990279,114260.0,114250.0,0.02242]
[1757564628690,3.24990279,114260.0,114250.0,0.02442]
[1757564630489,3.24990279,114260.0,114250.0,0.02542]
[1757564632793,3.15648455,114260.0,114250.0,0.04658]
[1757564633892,3.06542631,114260.0,114250.0,0.04658]
[1757564634197,3.15648455,114260.0,114250.0,0.04658]
[1757564634399,3.15648455,114260.0,114250.0,0.12512776]
[1757564635491,2.31704455,114260.0,114250.0,0.12512776]
[1757564635698,3.15548455,114260.0,114250.0,0.12512776]
[1757564636190,3.15524455,114260.0,114250.0,0.12512776]
[1757564636397,1.84451831,114260.0,114250.0,0.466186]
[1757564636597,2.68235831,114260.0,114250.0,0.466186]
[1757564636798,2.68235831,114260.0,114250.0,0.38763824]
[1757564637484,2.68235831,114260.0,114250.0,0.466186]
[1757564639297,2.68235831,114260.0,114250.0,0.38763824]
[1757564639698,2.68235831,114260.0,114250.0,0.49758866]
[1757564639900,2.68235831,114260.0,114250.0,0.40653042]
[1757564640600,2.68235831,114260.0,114250.0,0.49758866]
[1757564641294,2.68235831,114260.0,114250.0,0.5760746]
[1757564641701,2.68235831,114260.0,114250.0,0.46612418]
[1757564642001,2.68099831,114260.0,114250.0,0.46612418]
[1757564642396,1.84451831,114260.0,114250.0,0.46612418]
[1757564642702,2.68039831,114260.0,114250.0,0.38763824]
[1757564643002,2.68039831,114260.0,114250.0,0.49758866]
[1757564643204,0.38112708,114280.0,114250.0,1.1769505]
[1757564643405,0.38112708,114280.0,114270.0,0.20517629]
[1757564643597,1.12856708,114280.0,114270.0,0.20517629]
[1757564644399,1.21962532,114280.0,114270.0,0.11411805]
[1757564644601,1.22062532,114280.0,114270.0,0.03566]
[1757564645203,1.22062532,114280.0,114270.0,0.04441]
[1757564645503,1.21962532,114280.0,114270.0,0.04541]
[1757564645702,1.22860945,114280.0,114270.0,0.04541]
[1757564646106,1.22860945,114280.0,114270.0,0.12386805]
[1757564646304,1.13855121,114280.0,114270.0,0.12386805]
[1757564646504,1.22960945,114280.0,114270.0,0.12386805]
[1757564646902,1.22860945,114280.0,114270.0,0.12386805]
[1757564647209,1.22860945,114280.0,114270.0,0.12686805]
[1757564647409,1.20714879,114280.0,114270.0,0.12686805]
[1757564647702,1.29820703,114280.0,114270.0,0.12686805]
[1757564650805,1.29820703,114280.0,114270.0,0.21792629]
[1757564651411,1.29820703,114280.0,114270.0,0.12686805]
[1757564651712,1.29820703,114280.0,114270.0,0.21792629]
[1757564652109,1.29820703,114280.0,114270.0,0.12686805]
[1757564652309,1.29820703,114280.0,114270.0,0.21792629]
[1757564652999,1.20714879,114280.0,114270.0,0.21792629]
[1757564653312,1.29820703,114280.0,114270.0,0.21792629]
[1757564654206,0.45970879,114280.0,114270.0,0.21792629]
[1757564654604,0.09890879,114280.0,114270.0,0.55541469]
[1757564654909,0.09890879,114280.0,114270.0,0.70690736]
[1757564655106,0.06959758,114280.0,114270.0,1.5887656]
[1757564655305,0.83152,114280.0,114270.0,1.1287656]
[1757564655706,1.76508,114290.0,114280.0,0.123141]
[1757564655906,2.59648,114290.0,114280.0,0.89562461]
[1757564656414,2.66814262,114290.0,114280.0,0.89562461]
[1757564657913,2.66814262,114290.0,114280.0,0.89862461]
[1757564659113,2.66814262,114290.0,114280.0,0.97683342]
[1757564659508,2.66814262,114290.0,114280.0,0.86726629]
[1757564659712,2.66814262,114290.0,114280.0,0.56514981]
[1757564659909,1.83674262,114290.0,114280.0,0.77620805]
[1757564660115,2.66714262,114290.0,114280.0,0.69514981]
[1757564660314,2.66714262,114290.0,114280.0,0.87726629]
[1757564661018,2.66714262,114290.0,114280.0,1.12726629]
[1757564661413,2.66714262,114290.0,114280.0,0.99726629]
[1757564661613,2.66714262,114290.0,114280.0,1.13726629]
[1757564662017,2.66714262,114290.0,114280.0,1.11726629]
[1757564662219,2.66714262,114290.0,114280.0,1.03905748]
[1757564663828,2.66714262,114290.0,114280.0,0.91905748]
[1757564664029,2.66714262,114290.0,114280.0,1.03905748]
[1757564664233,2.66714262,114290.0,114280.0,1.11723996]
[1757564665140,2.66714262,114290.0,114280.0,1.14862461]
[1757564665432,2.66714262,114290.0,114280.0,1.50905748]
[1757564665636,2.66714262,114290.0,114280.0,1.58724895]
[1757564667639,2.66714262,114290.0,114280.0,1.40513247]
[1757564667840,1.83674262,114290.0,114280.0,1.67830719]
[1757564668139,2.66498262,114290.0,114280.0,1.67830719]
[1757564668431,2.66498262,114290.0,114280.0,1.68705719]
[1757564668736,0.89990262,114290.0,114280.0,1.68705719]
[1757564669835,0.90006262,114290.0,114280.0,1.68705719]
[1757564670036,0.8284,114290.0,114280.0,1.68705719]
[1757564670233,0.8284,114290.0,114280.0,1.41388247]
[1757564670737,0.8284,114290.0,114280.0,1.62737461]
[1757564671140,0.89736871,114290.0,114280.0,1.06525813]
[1757564671340,0.89736871,114290.0,114280.0,1.24737461]
[1757564673940,0.89736871,114290.0,114280.0,1.13780748]
[1757564675540,0.89736871,114290.0,114280.0,1.51780748]
[1757564676441,0.89736871,114290.0,114280.0,1.62737461]
[1757564676838,0.89736871,114290.0,114280.0,1.10777713]
[1757564677041,0.89736871,114290.0,114280.0,0.57909361]
[1757564677635,0.89736871,114290.0,114280.0,0.83032648]
[1757564678541,0.89736871,114290.0,114280.0,0.93989361]
[1757564679041,0.89736871,114290.0,114280.0,0.69989361]
[1757564679339,0.89736871,114290.0,114280.0,0.59032648]
[1757564680243,0.89736871,114290.0,114280.0,0.73032648]
[1757564680742,0.89736871,114290.0,114280.0,0.40821]
[1757564680941,0.89736871,114290.0,114280.0,0.72032648]
[1757564682439,0.89736871,114290.0,114280.0,0.82989361]
[1757564682636,0.03396871,114290.0,114280.0,0.82989361]
[1757564682949,0.02275,114350.0,114340.0,0.1235051]
[1757564683143,0.82516,114350.0,114340.0,0.5950815]
[1757564683341,0.84791,114350.0,114340.0,0.38402326]
[1757564683552,0.84791,114350.0,114340.0,0.29658816]
[1757564683741,1.09791,114350.0,114340.0,0.12712824]
[1757564684042,1.1690455,114350.0,114340.0,0.20535828]
[1757564684243,1.5298455,114350.0,114340.0,0.19165828]
[1757564684551,1.30537639,114350.0,114340.0,0.38200182]
[1757564685351,1.66617639,114350.0,114340.0,0.14507089]
[1757564685846,1.66617639,114350.0,114340.0,0.22995888]
[1757564686046,1.66617639,114350.0,114340.0,0.36628977]
[1757564686246,1.66617639,114350.0,114340.0,0.36625973]
[1757564686840,1.5298455,114350.0,114340.0,0.36625973]
[1757564687041,1.66617639,114350.0,114340.0,0.30377178]
[1757564687243,1.5292455,114350.0,114340.0,0.37993522]
[1757564688148,1.5292455,114350.0,114340.0,0.31747178]
[1757564688349,1.5292455,114350.0,114340.0,0.3799138]
[1757564688748,1.5292455,114350.0,114340.0,0.10725202]
[1757564688948,1.5292455,114350.0,114340.0,0.3799138]
[1757564689144,1.5292455,114350.0,114340.0,0.10725202]
[1757564689549,1.5292455,114350.0,114340.0,0.3799138]
[1757564690151,1.5292455,114350.0,114340.0,0.10725202]
[1757564690352,1.5292455,114350.0,114340.0,0.3799138]
[1757564690653,1.5292455,114350.0,114340.0,0.10725202]
[1757564691054,1.5292455,114350.0,114340.0,0.3799138]
[1757564691956,1.5292455,114350.0,114340.0,0.10725202]
[1757564692156,1.5292455,114350.0,114340.0,0.3662138]
[1757564693457,1.5292455,114350.0,114340.0,0.30377178]
[1757564693858,1.5292455,114350.0,114340.0,0.28140178]
[1757564694259,1.5292455,114350.0,114340.0,0.30245178]
[1757564694460,1.66557639,114350.0,114340.0,0.30245178]
[1757564695059,1.66557639,114350.0,114340.0,0.3648938]
[1757564695560,1.66557639,114350.0,114340.0,0.07118202]
[1757564695860,1.66557639,114350.0,114340.0,0.3438438]
[1757564696054,1.66557639,114350.0,114340.0,0.3648938]
[1757564696461,1.5292455,114350.0,114340.0,0.3648938]
[1757564696656,1.66557639,114350.0,114340.0,0.3648938]
[1757564696963,1.5292455,114350.0,114340.0,0.09223202]
[1757564697260,1.66557639,114350.0,114340.0,0.3648938]
[1757564698563,1.66557639,114350.0,114340.0,0.09223202]
[1757564698863,0.7046855,114350.0,114340.0,0.3648938]
[1757564699163,1.66229639,114350.0,114340.0,0.3648938]
[1757564700152,1.5259655,114350.0,114340.0,0.3648938]
[1757564700359,1.66229639,114350.0,114340.0,0.3648938]
[1757564700966,1.5259655,114350.0,114340.0,0.3648938]
[1757564701165,1.41229639,114350.0,114340.0,0.22856291]
[1757564701364,1.41229639,114350.0,114340.0,0.3648938]
[1757564702068,1.2759655,114350.0,114340.0,0.09223202]
[1757564702263,1.41229639,114350.0,114340.0,0.3438438]
[1757564702967,1.41229639,114350.0,114340.0,0.3648938]
[1757564703567,1.41229639,114350.0,114340.0,0.22856291]
[1757564704068,1.2759655,114350.0,114340.0,0.22856291]
[1757564704269,1.41229639,114350.0,114340.0,0.22856291]
[1757564704473,1.41229639,114350.0,114340.0,0.09223202]
[1757564704665,1.2759655,114350.0,114340.0,0.09223202]
[1757564704870,1.41229639,114350.0,114340.0,0.3648938]
[1757564705770,1.79862728,114350.0,114340.0,0.07118202]
[1757564705959,1.79862728,114350.0,114340.0,0.00874]
[1757564706161,1.66229639,114350.0,114340.0,0.00874]
[1757564706366,1.79862728,114350.0,114340.0,0.00874]
[1757564707575,1.66229639,114350.0,114340.0,0.00874]
[1757564707767,1.79862728,114350.0,114340.0,0.00874]
[1757564708568,1.66013639,114350.0,114340.0,0.00874]
[1757564711277,1.66013639,114350.0,114340.0,0.07118202]
[1757564711982,1.5238055,114350.0,114340.0,0.07118202]
[1757564712182,3.2874855,114350.0,114340.0,0.07118202]
[1757564712387,3.42381639,114350.0,114340.0,0.07118202]
[1757564712883,3.2874855,114350.0,114340.0,0.07118202]
[1757564713072,3.42381639,114350.0,114340.0,0.07118202]
[1757564714881,3.2874855,114350.0,114340.0,0.07118202]
[1757564715080,3.42381639,114350.0,114340.0,0.07118202]
[1757564718490,3.2874855,114350.0,114340.0,0.07118202]
[1757564718782,3.42381639,114350.0,114340.0,0.07118202]
[1757564720286,3.56014728,114350.0,114340.0,0.07118202]
[1757564720588,2.74102728,114350.0,114340.0,0.07118202]
[1757564720884,3.42045639,114350.0,114340.0,0.07118202]
[1757564725093,3.55678728,114350.0,114340.0,0.07118202]
[1757564728697,3.55514728,114350.0,114340.0,0.00874]
[1757564728997,3.55514728,114350.0,114340.0,0.07143499]
[1757564731695,3.55514728,114350.0,114330.0,0.21456093]
[1757564731900,0.65898178,114340.0,114330.0,0.13633089]
[1757564732102,0.38632,114340.0,114330.0,0.13633089]
[1757564732500,0.65898178,114340.0,114330.0,0.24589802]
[1757564732898,0.65898178,114340.0,114330.0,0.10956713]
[1757564733102,0.65898178,114340.0,114330.0,0.24589802]
[1757564733703,0.67959431,114340.0,114330.0,0.24589802]
[1757564734106,0.67959431,114340.0,114330.0,0.24689802]
[1757564734294,0.40693253,114340.0,114330.0,0.24689802]
[1757564734493,0.67959431,114340.0,114330.0,0.24689802]
[1757564734793,0.67959431,114340.0,114330.0,0.24789802]
[1757564735200,0.67959431,114340.0,114330.0,0.11156713]
[1757564735404,0.67959431,114340.0,114330.0,0.24789802]
[1757564735604,0.67959431,114340.0,114330.0,0.11256713]
[1757564735803,0.67959431,114340.0,114330.0,0.24889802]
[1757564736206,0.67959431,114340.0,114330.0,0.11256713]
[1757564736598,1.0659252,114340.0,114310.0,0.11769077]
[1757564736795,0.63346178,114320.0,114310.0,0.01373]
[1757564736996,1.82801942,114320.0,114310.0,0.01373]
[1757564737201,1.82801942,114320.0,114310.0,0.09220947]
[1757564737402,1.01437942,114320.0,114310.0,0.09220947]
[1757564737705,1.82801942,114320.0,114310.0,0.09220947]
[1757564737906,1.82801942,114320.0,114310.0,0.09320947]
[1757564738102,0.74171764,114320.0,114310.0,0.09320947]
[1757564738407,1.82801942,114320.0,114310.0,0.09320947]
[1757564738608,1.82801942,114320.0,114310.0,0.09420947]
[1757564739407,1.82801942,114320.0,114310.0,0.09520947]
[1757564740907,1.82801942,114320.0,114310.0,0.08147947]
[1757564742603,1.80790178,114320.0,114310.0,0.08147947]
[1757564743211,1.80790178,114320.0,114310.0,0.003]
[1757564743712,1.80790178,114320.0,114310.0,0.01673]
[1757564743908,1.80790178,114320.0,114310.0,0.003]
[1757564744115,1.80790178,114320.0,114310.0,0.06567619]
[1757564744414,1.71715162,114320.0,114310.0,0.06567619]
[1757564748010,1.98741107,114320.0,114310.0,0.01486828]
[1757564748210,1.98741107,114320.0,114300.0,0.00012]
[1757564748418,0.45175581,114310.0,114300.0,0.00012]
[1757564748619,0.52202774,114310.0,114300.0,0.00012]
[1757564750418,0.43107193,114310.0,114300.0,0.00312]
[1757564750721,0.52202774,114310.0,114300.0,0.00312]
[1757564751116,0.52202774,114310.0,114300.0,0.00212]
[1757564751419,0.52202774,114310.0,114300.0,0.00412]
[1757564752519,0.52202774,114310.0,114300.0,0.01753]
[1757564753018,1.33570774,114310.0,114300.0,0.00412]
[1757564753221,1.33570774,114310.0,114300.0,0.01753]
[1757564753715,0.52202774,114310.0,114300.0,0.01753]
[1757564753920,1.33570774,114310.0,114300.0,0.01753]
[1757564756321,3.00895193,114310.0,114300.0,0.01753]
[1757564756622,3.09990774,114310.0,114300.0,0.01753]
[1757564757120,3.00895193,114310.0,114300.0,0.01753]
[1757564757321,3.09990774,114310.0,114300.0,0.01753]
[1757564758123,2.28622774,114310.0,114300.0,0.03958]
[1757564758318,3.09986774,114310.0,114300.0,0.03958]
[1757564758523,3.09986774,114310.0,114300.0,0.11805947]
[1757564760922,2.19527193,114310.0,114300.0,0.11805947]
[1757564761129,3.00887193,114310.0,114300.0,0.11793947]
[1757564761330,3.09982774,114310.0,114300.0,0.11793947]
[1757564761724,3.09982774,114310.0,114300.0,0.09588947]
[1757564762123,3.09982774,114310.0,114300.0,0.0544662]
[1757564762124,3.44078355,114310.0,114300.0,0.0544662]
[1757564762425,3.44078355,114310.0,114290.0,0.01353]
[1757564762631,0.54271162,114300.0,114290.0,0.01353]
[1757564764927,0.54271162,114300.0,114290.0,0.01453]
[1757564765525,0.54571162,114300.0,114290.0,0.01453]
[1757564766023,0.55171162,114300.0,114290.0,0.01453]
[1757564766235,0.80171162,114300.0,114290.0,0.01453]
[1757564766430,0.89266743,114300.0,114290.0,0.01453]
[1757564766825,0.80171162,114300.0,114290.0,0.01453]
[1757564767725,0.94691162,114300.0,114290.0,0.01453]
[1757564767928,0.80171162,114300.0,114290.0,0.01453]
[1757564768139,1.61527162,114300.0,114290.0,0.01453]
[1757564768528,0.80171162,114300.0,114290.0,0.01453]
[1757564768730,1.61527162,114300.0,114290.0,0.01453]
[1757564770034,1.70622743,114300.0,114290.0,0.01453]
[1757564770433,1.61527162,114300.0,114290.0,0.01453]
[1757564770629,0.80171162,114300.0,114290.0,0.01453]
[1757564770835,1.61523162,114300.0,114290.0,0.01453]
[1757564771636,1.45618743,114300.0,114290.0,0.01441]
[1757564772228,1.70618743,114300.0,114280.0,0.01273]
[1757564772434,0.54271162,114290.0,114280.0,0.01273]
[1757564773038,0.3608,114290.0,114280.0,0.01273]
[1757564773537,1.35623162,114290.0,114280.0,0.01373]
[1757564774530,1.35619162,114290.0,114280.0,0.01373]
[1757564775031,1.17428,114290.0,114280.0,0.01373]
[1757564775231,0.54271162,114290.0,114280.0,0.01373]
[1757564775432,1.35619162,114290.0,114280.0,0.01373]
[1757564775636,1.36119162,114290.0,114280.0,0.01373]
[1757564775935,1.27023581,114290.0,114280.0,0.01373]
[1757564778038,1.27223581,114290.0,114280.0,0.01373]
[1757564779942,1.36319162,114290.0,114280.0,0.01373]
[1757564782135,1.18128,114290.0,114280.0,0.01373]
[1757564782343,1.36319162,114290.0,114280.0,0.01373]
[1757564782644,1.18128,114290.0,114280.0,0.01373]
[1757564782940,1.36311162,114290.0,114280.0,0.01373]
[1757564783444,1.36311162,114290.0,114280.0,0.01337]
[1757564784844,0.54971162,114290.0,114280.0,0.01337]
[1757564785044,1.36307162,114290.0,114280.0,0.01337]
[1757564786341,1.18116,114290.0,114280.0,0.01337]
[1757564786540,1.36307162,114290.0,114280.0,0.01337]
[1757564786845,0.54971162,114290.0,114280.0,0.01337]
[1757564787046,1.36303162,114290.0,114280.0,0.01337]
[1757564787248,1.18112,114290.0,114280.0,0.01337]
[1757564787450,1.36303162,114290.0,114280.0,0.01337]
[1757564792751,0.54971162,114290.0,114280.0,0.01337]
[1757564792944,1.36287162,114290.0,114280.0,0.01337]
[1757564793345,1.36287162,114290.0,114280.0,0.03595]
[1757564793851,0.45875581,114290.0,114280.0,0.28595]
[1757564794151,0.3678,114290.0,114280.0,0.37690581]
[1757564794353,1.18088,114290.0,114280.0,0.37690581]
[1757564794551,1.18088,114290.0,114280.0,0.45536815]
[1757564795748,0.3678,114290.0,114280.0,0.45536815]
[1757564795952,0.3678,114290.0,114280.0,0.54632396]
[1757564796144,0.3678,114290.0,114280.0,0.46786162]
[1757564796344,1.18084,114290.0,114280.0,0.37690581]
[1757564796849,1.18084,114290.0,114280.0,0.48660388]
[1757564797049,0.3678,114290.0,114280.0,0.48660388]
[1757564797253,1.1808,114290.0,114280.0,0.48660388]
[1757564799365,1.1808,114290.0,114280.0,0.23660388]
[1757564799563,1.18072,114290.0,114280.0,0.20543033]
[1757564800260,0.3678,114290.0,114280.0,0.20543033]
[1757564800467,1.18068,114290.0,114280.0,0.20543033]
[1757564800659,0.3678,114290.0,114280.0,0.20543033]
[1757564801059,1.18064,114290.0,114280.0,0.12690581]
[1757564801259,1.18064,114290.0,114280.0,0.20540762]
[1757564802668,0.3678,114290.0,114280.0,0.11445181]
[1757564802863,1.18064,114290.0,114280.0,0.20540762]
[1757564803069,1.1806,114290.0,114280.0,0.14564807]
[1757564803270,1.1806,114290.0,114280.0,0.23660388]
[1757564803765,1.1806,114290.0,114280.0,0.22413529]
[1757564803973,1.1806,114290.0,114280.0,0.20539303]
[1757564804170,1.1806,114290.0,114280.0,0.11443722]
[1757564804372,1.1806,114290.0,114280.0,0.38735892]
[1757564804672,1.31706085,114290.0,114280.0,0.38735892]
[1757564805173,1.1806,114290.0,114280.0,0.38735892]
[1757564805473,1.31698085,114290.0,114280.0,0.38735892]
[1757564805773,1.18052,114290.0,114280.0,0.38735892]
[1757564805973,1.18052,114290.0,114280.0,0.3088717]
[1757564806474,1.31698085,114290.0,114280.0,0.17241085]
[1757564806674,1.18052,114290.0,114280.0,0.17241085]
[1757564806873,1.31698085,114290.0,114280.0,0.17241085]
[1757564807174,1.31698085,114290.0,114280.0,0.03595]
[1757564807373,0.50426085,114290.0,114280.0,0.17241085]
[1757564807569,1.31694085,114290.0,114280.0,0.28210892]
[1757564807770,0.50426085,114290.0,114280.0,0.28210892]
[1757564807971,1.31690085,114290.0,114280.0,0.25094693]
[1757564808476,0.50426085,114290.0,114280.0,0.17241085]
[1757564808671,1.31686085,114290.0,114280.0,0.2509446]
[1757564810174,0.50426085,114290.0,114280.0,0.2509446]
[1757564810374,1.31682085,114290.0,114280.0,0.2509446]
[1757564810577,1.31678085,114290.0,114280.0,0.2509446]
[1757564811079,0.50426085,114290.0,114280.0,0.2509446]
[1757564811280,1.31678085,114290.0,114280.0,0.2509446]
[1757564811980,0.50426085,114290.0,114280.0,0.17241085]